[Event "NK 2022"]
[Site "Groningen, Netherlands"]
[Date "2022.12.21"]
[Round "1.5"]
[White "Reinderman, Dimitri"]
[Black "Swinkels, Robin"]
[Result "1/2-1/2"]
[TimeControl "40/90; 30 minutes + increment 30 seconds from start"]
[WhiteTitle "GM"]
[BlackTitle "GM"]
[WhiteFideId "1001302"]
[BlackFideId "1010824"]
[WhiteElo "2575"]
[BlackElo "2514"]

1. c4 {[%clk 01:17:37]} {[%emt 00:13:23]} e6 {[%clk 01:30:45]} {[%emt
00:00:15]} 2. g3 {[%clk 01:17:50]} {[%emt 00:00:16]} d5 {[%clk 01:31:09]}
{[%emt 00:00:05]} 3. Bg2 {[%clk 01:18:12]} {[%emt 00:00:10]} Nf6 {[%clk
01:31:31]} {[%emt 00:00:07]} 4. Nf3 {[%clk 01:18:35]} {[%emt 00:00:08]} dxc4
{[%clk 01:31:11]} {[%emt 00:00:51]} 5. Qa4+ {[%clk 01:18:29]} {[%emt 00:00:36]}
Nbd7 {[%clk 01:30:48]} {[%emt 00:00:52]} 6. Qxc4 {[%clk 01:18:44]} {[%emt
00:00:15]} a6 {[%clk 01:30:46]} {[%emt 00:00:33]} 7. Qc2 {[%clk 01:17:09]}
{[%emt 00:02:04]} c5 {[%clk 01:30:23]} {[%emt 00:00:52]} 8. a4 {[%clk
01:16:26]} {[%emt 00:01:13]} b6 {[%clk 01:22:47]} {[%emt 00:08:06]} 9. d3
{[%clk 01:15:57]} {[%emt 00:00:59]} Bb7 {[%clk 01:22:33]} {[%emt 00:00:43]} 10.
O-O {[%clk 01:15:48]} {[%emt 00:00:39]} Be7 {[%clk 01:18:02]} {[%emt 00:05:02]}
11. e4 {[%clk 01:15:00]} {[%emt 00:01:19]} O-O {[%clk 01:15:15]} {[%emt
00:03:17]} 12. Bf4 {[%clk 01:10:51]} {[%emt 00:04:39]} Nb8 {[%clk 01:04:47]}
{[%emt 00:10:57]} 13. Na3 {[%clk 01:09:18]} {[%emt 00:02:03]} Nc6 {[%clk
01:04:55]} {[%emt 00:00:21]} 14. Rfd1 {[%clk 01:09:05]} {[%emt 00:00:43]} Nh5
{[%clk 00:34:19]} {[%emt 00:31:06]} 15. Be3 {[%clk 01:06:07]} {[%emt 00:03:29]}
Nd4 {[%clk 00:15:12]} {[%emt 00:19:36]} 16. Bxd4 {[%clk 00:42:01]} {[%emt
00:24:36]} cxd4 {[%clk 00:15:39]} {[%emt 00:00:04]} 17. Qc4 {[%clk 00:42:12]}
{[%emt 00:00:19]} Rc8 {[%clk 00:08:06]} {[%emt 00:08:03]} 18. Qxd4 {[%clk
00:41:52]} {[%emt 00:00:50]} Qxd4 {[%clk 00:08:32]} {[%emt 00:00:03]} 19. Nxd4
{[%clk 00:42:15]} {[%emt 00:00:07]} Bf6 {[%clk 00:09:01]} {[%emt 00:00:01]} 20.
Ndc2 {[%clk 00:38:25]} {[%emt 00:04:21]} Bc6 {[%clk 00:00:38]} {[%emt
00:08:53]} 21. Nc4 {[%clk 00:31:48]} {[%emt 00:07:06]} b5 {[%clk 00:01:07]} 22.
axb5 {[%clk 00:32:00]} {[%emt 00:00:19]} axb5 {[%clk 00:01:34]} {[%emt
00:00:03]} 23. N4e3 {[%clk 00:32:15]} {[%emt 00:00:15]} Bxb2 {[%clk 00:01:53]}
{[%emt 00:00:10]} 24. Rab1 {[%clk 00:32:35]} {[%emt 00:00:10]} Bc3 {[%clk
00:01:38]} {[%emt 00:00:45]} 25. d4 {[%clk 00:31:55]} {[%emt 00:01:11]} Nf6
{[%clk 00:01:57]} {[%emt 00:00:11]} 26. e5 {[%clk 00:27:08]} {[%emt 00:05:16]}
Ne4 {[%clk 00:01:08]} {[%emt 00:01:18]} 27. d5 {[%clk 00:27:12]} {[%emt
00:00:27]} exd5 {[%clk 00:01:15]} {[%emt 00:00:24]} 28. Nxd5 {[%clk 00:27:37]}
{[%emt 00:00:04]} Bxd5 {[%clk 00:01:29]} {[%emt 00:00:16]} 29. Rxd5 {[%clk
00:28:03]} {[%emt 00:00:04]} Nc5 {[%clk 00:00:51]} {[%emt 00:01:08]} 30. Nb4
{[%clk 00:17:07]} {[%emt 00:11:27]} Ne6 {[%clk 00:00:32]} {[%emt 00:00:48]} 31.
Rxb5 {[%clk 00:17:05]} {[%emt 00:00:32]} Rb8 {[%clk 00:00:33]} {[%emt
00:00:29]} 32. Nd5 {[%clk 00:11:12]} {[%emt 00:06:23]} Bxe5 {[%clk 00:00:49]}
{[%emt 00:00:14]} 33. Ne7+ {[%clk 00:10:32]} {[%emt 00:01:11]} Kh8 {[%clk
00:01:18]} 34. Nc6 {[%clk 00:10:42]} {[%emt 00:00:19]} Rxb5 {[%clk 00:01:45]}
{[%emt 00:00:03]} 35. Rxb5 {[%clk 00:11:08]} {[%emt 00:00:04]} Bf6 {[%clk
00:01:56]} {[%emt 00:00:19]} 36. Rb7 {[%clk 00:10:59]} {[%emt 00:00:39]} Nd8
{[%clk 00:01:29]} {[%emt 00:00:57]} 37. Nxd8 {[%clk 00:10:58]} {[%emt
00:00:31]} Bxd8 {[%clk 00:01:55]} {[%emt 00:00:04]} 38. Bd5 {[%clk 00:11:12]}
{[%emt 00:00:17]} f5 {[%clk 00:01:00]} {[%emt 00:01:24]} 39. Kg2 {[%clk
00:10:56]} {[%emt 00:00:47]} Bf6 {[%clk 00:01:18]} {[%emt 00:00:12]} 40. h4
{[%clk 00:09:50]} {[%emt 00:01:36]} f4 {[%clk 00:01:13]} {[%emt 00:00:34]} 41.
h5 {[%clk 00:07:21]} {[%emt 00:03:00]} fxg3 {[%clk 00:01:28]} {[%emt 00:00:15]}
42. fxg3 {[%clk 00:06:28]} {[%emt 00:01:22]} g6 {[%clk 00:23:34]} {[%emt
00:08:24]} 43. hxg6 {[%clk 00:35:48]} {[%emt 00:01:11]} hxg6 {[%clk 00:24:02]}
{[%emt 00:00:02]} 44. Be4 {[%clk 00:36:06]} {[%emt 00:00:12]} g5 {[%clk
00:17:31]} {[%emt 00:07:01]} 45. Bb1 {[%clk 00:30:51]} {[%emt 00:05:44]} Bd4
{[%clk 00:16:56]} {[%emt 00:01:05]} 46. Kh3 {[%clk 00:29:51]} {[%emt 00:01:30]}
Rf6 {[%clk 00:16:57]} {[%emt 00:00:29]} 47. Rd7 {[%clk 00:29:14]} {[%emt
00:01:08]} Be3 {[%clk 00:17:22]} {[%emt 00:00:04]} 48. Ba2 {[%clk 00:26:29]}
{[%emt 00:03:16]} Ra6 {[%clk 00:17:34]} {[%emt 00:00:17]} 49. Bb3 {[%clk
00:26:20]} {[%emt 00:00:39]} Rb6 {[%clk 00:18:00]} {[%emt 00:00:04]} 50. Bc4
{[%clk 00:26:16]} {[%emt 00:00:35]} Rc6 {[%clk 00:18:26]} {[%emt 00:00:04]} 51.
Bd5 {[%clk 00:26:26]} {[%emt 00:00:20]} Rh6+ {[%clk 00:16:40]} {[%emt
00:02:15]} 52. Kg4 {[%clk 00:26:42]} {[%emt 00:00:14]} Rf6 {[%clk 00:16:20]}
{[%emt 00:00:51]} 53. Kh5 {[%clk 00:24:59]} {[%emt 00:02:12]} Bc1 {[%clk
00:16:35]} {[%emt 00:00:15]} 54. Rc7 {[%clk 00:23:24]} {[%emt 00:02:06]} Be3
{[%clk 00:17:01]} {[%emt 00:00:03]} 55. Re7 {[%clk 00:22:47]} {[%emt 00:01:08]}
Bd2 {[%clk 00:17:24]} {[%emt 00:00:07]} 56. Rd7 {[%clk 00:22:59]} {[%emt
00:00:18]} Bc1 {[%clk 00:17:48]} {[%emt 00:00:05]} 57. Rc7 {[%clk 00:23:16]}
{[%emt 00:00:13]} 1/2-1/2

[Event "NK 2022"]
[Site "Groningen, Netherlands"]
[Date "2022.12.21"]
[Round "1.6"]
[White "Beerdsen, Thomas"]
[Black "Tiviakov, Sergei"]
[Result "0-1"]
[TimeControl "40/90; 30 minutes + increment 30 seconds from start"]
[WhiteTitle "IM"]
[BlackTitle "GM"]
[WhiteFideId "1030108"]
[BlackFideId "1008013"]
[WhiteElo "2521"]
[BlackElo "2562"]

1. e4 {[%clk 01:30:56]} {[%emt 00:00:02]} e6 {[%clk 01:30:56]} {[%emt
00:00:05]} 2. d4 {[%clk 01:31:21]} {[%emt 00:00:05]} d5 {[%clk 01:31:21]}
{[%emt 00:00:05]} 3. Nc3 {[%clk 01:31:45]} {[%emt 00:00:06]} dxe4 {[%clk
01:31:43]} {[%emt 00:00:08]} 4. Nxe4 {[%clk 01:32:09]} {[%emt 00:00:06]} Bd7
{[%clk 01:31:58]} {[%emt 00:00:16]} 5. Nf3 {[%clk 01:31:49]} {[%emt 00:00:49]}
Bc6 {[%clk 01:32:21]} {[%emt 00:00:07]} 6. Neg5 {[%clk 01:31:43]} {[%emt
00:00:36]} Nd7 {[%clk 01:32:41]} {[%emt 00:00:11]} 7. Nxf7 {[%clk 01:31:24]}
{[%emt 00:00:48]} Kxf7 {[%clk 01:33:01]} {[%emt 00:00:11]} 8. Ng5+ {[%clk
01:31:47]} {[%emt 00:00:06]} Ke8 {[%clk 01:33:18]} {[%emt 00:00:13]} 9. Bc4
{[%clk 01:32:03]} {[%emt 00:00:13]} Bxg2 {[%clk 01:30:50]} {[%emt 00:02:59]} 10.
Rg1 {[%clk 01:32:14]} {[%emt 00:00:18]} Bd5 {[%clk 01:30:33]} {[%emt 00:00:47]}
11. Nxe6 {[%clk 01:32:33]} {[%emt 00:00:11]} Bxe6 {[%clk 01:29:04]} {[%emt
00:02:00]} 12. Bxe6 {[%clk 01:32:04]} {[%emt 00:00:58]} Bb4+ {[%clk 01:11:43]}
{[%emt 00:17:51]} 13. c3 {[%clk 01:10:34]} {[%emt 00:21:59]} Qe7 {[%clk
01:11:34]} {[%emt 00:00:40]} 14. Qe2 {[%clk 01:07:09]} {[%emt 00:03:54]} Bd6
{[%clk 00:56:12]} {[%emt 00:15:53]} 15. Bg5 {[%clk 01:00:47]} {[%emt 00:06:50]}
Ngf6 {[%clk 00:56:36]} {[%emt 00:00:07]} 16. O-O-O {[%clk 00:59:17]} {[%emt
00:02:00]} Kd8 {[%clk 00:35:07]} {[%emt 00:22:00]} 17. Rde1 {[%clk 00:44:12]}
{[%emt 00:15:34]} h6 {[%clk 00:29:27]} {[%emt 00:06:11]} 18. Bd2 {[%clk
00:26:18]} {[%emt 00:18:23]} Nf8 {[%clk 00:27:11]} {[%emt 00:02:46]} 19. Qc4
{[%clk 00:13:49]} {[%emt 00:12:59]} Nxe6 {[%clk 00:27:26]} {[%emt 00:00:16]} 20.
Rxe6 {[%clk 00:14:12]} {[%emt 00:00:06]} Qd7 {[%clk 00:27:29]} {[%emt
00:00:28]} 21. Qb3 {[%clk 00:10:41]} {[%emt 00:04:00]} b6 {[%clk 00:21:11]}
{[%emt 00:06:49]} 22. Rge1 {[%clk 00:09:14]} {[%emt 00:01:57]} Re8 {[%clk
00:15:30]} {[%emt 00:06:11]} 23. Rxe8+ {[%clk 00:08:27]} {[%emt 00:01:16]} Nxe8
{[%clk 00:15:56]} {[%emt 00:00:04]} 24. Qg8 {[%clk 00:07:00]} {[%emt 00:01:57]}
Rc8 {[%clk 00:15:03]} {[%emt 00:01:24]} 25. Re3 {[%clk 00:03:25]} {[%emt
00:04:03]} c6 {[%clk 00:13:37]} {[%emt 00:01:58]} 26. Rf3 {[%clk 00:02:05]}
{[%emt 00:01:49]} Rc7 {[%clk 00:13:01]} {[%emt 00:01:07]} 27. h3 {[%clk
00:01:56]} {[%emt 00:00:38]} Qe7 {[%clk 00:12:09]} {[%emt 00:01:22]} 28. c4
{[%clk 00:02:08]} {[%emt 00:00:18]} Rd7 {[%clk 00:11:38]} {[%emt 00:01:02]} 29.
a3 {[%clk 00:01:26]} {[%emt 00:01:12]} Bc7 {[%clk 00:07:36]} {[%emt 00:04:32]}
30. Bb4 {[%emt 00:01:03]} Qe4 {[%clk 00:07:48]} 31. Qf8 {[%clk 00:01:03]}
{[%emt 00:00:37]} a5 {[%clk 00:07:27]} {[%emt 00:00:51]} 32. Bd2 {[%clk
00:00:46]} {[%emt 00:00:46]} Qxd4 {[%clk 00:06:30]} {[%emt 00:01:28]} 33. Re3
{[%clk 00:00:58]} {[%emt 00:00:18]} Qxc4+ {[%clk 00:06:23]} {[%emt 00:00:38]}
0-1

[Event "NK 2022"]
[Site "Groningen, Netherlands"]
[Date "2022.12.21"]
[Round "1.7"]
[White "Pruijssers, Roeland"]
[Black "Burg, Twan"]
[Result "1/2-1/2"]
[TimeControl "40/90; 30 minutes + increment 30 seconds from start"]
[WhiteTitle "GM"]
[BlackTitle "GM"]
[WhiteFideId "1013068"]
[BlackFideId "1010697"]
[WhiteElo "2538"]
[BlackElo "2522"]

1. d4 {[%clk 01:29:09]} {[%emt 00:01:49]} Nf6 {[%clk 01:30:49]} {[%emt
00:00:11]} 2. c4 {[%clk 01:29:31]} {[%emt 00:00:08]} e6 {[%clk 01:31:02]}
{[%emt 00:00:18]} 3. Nc3 {[%clk 01:29:51]} {[%emt 00:00:09]} Bb4 {[%clk
01:31:08]} {[%emt 00:00:24]} 4. a3 {[%clk 01:30:09]} {[%emt 00:00:13]} Bxc3+
{[%clk 01:31:22]} {[%emt 00:00:14]} 5. bxc3 {[%clk 01:30:33]} {[%emt 00:00:08]}
O-O {[%clk 01:30:25]} {[%emt 00:01:26]} 6. Bg5 {[%clk 01:27:12]} {[%emt
00:03:52]} h6 {[%clk 01:27:30]} {[%emt 00:03:25]} 7. Bh4 {[%clk 01:25:33]}
{[%emt 00:02:09]} d6 {[%clk 01:26:36]} {[%emt 00:01:24]} 8. Nf3 {[%clk
01:08:36]} {[%emt 00:17:27]} g5 {[%clk 01:16:19]} {[%emt 00:10:47]} 9. Bg3
{[%clk 01:05:12]} {[%emt 00:03:54]} Nh5 {[%clk 01:14:26]} {[%emt 00:02:21]} 10.
e4 {[%clk 01:01:14]} {[%emt 00:04:30]} f5 {[%clk 01:14:02]} {[%emt 00:00:55]}
11. Nd2 {[%clk 00:56:17]} {[%emt 00:05:27]} g4 {[%clk 01:03:01]} {[%emt
00:11:31]} 12. f3 {[%clk 00:48:33]} {[%emt 00:08:14]} Nxg3 {[%clk 01:01:12]}
{[%emt 00:02:19]} 13. hxg3 {[%clk 00:48:55]} {[%emt 00:00:07]} Qg5 {[%clk
01:01:37]} {[%emt 00:00:06]} 14. f4 {[%clk 00:48:20]} {[%emt 00:01:05]} Qg7
{[%clk 01:02:02]} {[%emt 00:00:05]} 15. Bd3 {[%clk 00:47:50]} {[%emt 00:00:59]}
c5 {[%clk 01:01:22]} {[%emt 00:01:10]} 16. Nb3 {[%clk 00:39:56]} {[%emt
00:08:24]} Nc6 {[%clk 00:57:43]} {[%emt 00:04:09]} 17. dxc5 {[%clk 00:26:36]}
{[%emt 00:13:51]} dxc5 {[%clk 00:51:10]} {[%emt 00:07:02]} 18. e5 {[%clk
00:26:32]} {[%emt 00:00:35]} b6 {[%clk 00:45:06]} {[%emt 00:06:34]} 19. Qe2
{[%clk 00:24:40]} {[%emt 00:02:21]} Bd7 {[%clk 00:44:24]} {[%emt 00:01:13]} 20.
Kf2 {[%clk 00:22:58]} {[%emt 00:02:12]} Rfd8 {[%clk 00:42:38]} {[%emt
00:02:15]} 21. Nd2 {[%clk 00:09:14]} {[%emt 00:14:14]} Be8 {[%clk 00:34:31]}
{[%emt 00:08:38]} 22. Nf1 {[%clk 00:09:27]} {[%emt 00:00:16]} Bg6 {[%clk
00:29:24]} {[%emt 00:05:37]} 23. Ne3 {[%clk 00:09:23]} {[%emt 00:00:34]} Na5
{[%clk 00:18:42]} {[%emt 00:11:13]} 24. Bc2 {[%clk 00:09:20]} {[%emt 00:00:32]}
h5 {[%clk 00:15:38]} {[%emt 00:03:34]} 25. Ba4 {[%clk 00:08:54]} {[%emt
00:00:56]} Qc7 {[%clk 00:14:18]} {[%emt 00:01:50]} 26. Rad1 {[%clk 00:04:59]}
{[%emt 00:04:25]} Rxd1 {[%clk 00:12:14]} {[%emt 00:02:35]} 27. Rxd1 {[%clk
00:05:25]} {[%emt 00:00:03]} Rd8 {[%clk 00:12:39]} {[%emt 00:00:04]} 28. Rd3
{[%clk 00:04:10]} {[%emt 00:01:46]} Nb7 {[%clk 00:12:04]} {[%emt 00:01:06]} 29.
Qd1 {[%clk 00:03:28]} {[%emt 00:01:11]} Rxd3 {[%clk 00:10:51]} {[%emt
00:01:44]} 30. Qxd3 {[%clk 00:03:56]} {[%emt 00:00:02]} Qd8 {[%clk 00:11:15]}
{[%emt 00:00:06]} 31. Ke2 {[%clk 00:01:23]} {[%emt 00:03:02]} Qxd3+ {[%clk
00:11:00]} {[%emt 00:00:45]} 32. Kxd3 {[%clk 00:01:51]} {[%emt 00:00:02]} Kf8
{[%clk 00:11:08]} {[%emt 00:00:22]} 33. Bb5 {[%clk 00:01:47]} {[%emt 00:00:35]}
Bf7 {[%clk 00:09:54]} {[%emt 00:01:44]} 34. Nc2 {[%clk 00:02:02]} {[%emt
00:00:14]} Ke7 {[%clk 00:09:53]} {[%emt 00:00:31]} 35. Ne3 {[%clk 00:00:57]}
{[%emt 00:01:35]} Na5 {[%clk 00:09:50]} {[%emt 00:00:33]} 36. Nc2 {[%clk
00:01:15]} {[%emt 00:00:12]} Nb7 {[%clk 00:09:59]} {[%emt 00:00:22]} 37. Ne3
{[%clk 00:01:37]} {[%emt 00:00:06]} Na5 {[%clk 00:10:24]} {[%emt 00:00:07]} 38.
Nc2 {[%clk 00:01:56]} {[%emt 00:00:10]} 1/2-1/2

[Event "NK 2022"]
[Site "Groningen, Netherlands"]
[Date "2022.12.21"]
[Round "1.8"]
[White "Kevlishvili, Robby"]
[Black "Ten Hertog, Hugo"]
[Result "1/2-1/2"]
[TimeControl "40/90; 30 minutes + increment 30 seconds from start"]
[WhiteTitle "GM"]
[BlackTitle "GM"]
[WhiteFideId "1040634"]
[BlackFideId "1026356"]
[WhiteElo "2530"]
[BlackElo "2531"]

1. e4 {[%clk 01:30:57]} {[%emt 00:00:02]} c6 {[%clk 01:30:55]} {[%emt
00:00:06]} 2. Nf3 {[%clk 01:31:19]} {[%emt 00:00:07]} d5 {[%clk 01:31:21]}
{[%emt 00:00:05]} 3. Nc3 {[%clk 01:31:43]} {[%emt 00:00:05]} dxe4 {[%clk
01:31:40]} {[%emt 00:00:11]} 4. Nxe4 {[%clk 01:32:07]} {[%emt 00:00:07]} Nf6
{[%clk 01:32:06]} {[%emt 00:00:04]} 5. Qe2 {[%clk 01:32:28]} {[%emt 00:00:08]}
Nxe4 {[%clk 01:32:25]} {[%emt 00:00:11]} 6. Qxe4 {[%clk 01:32:52]} {[%emt
00:00:06]} Be6 {[%clk 01:32:50]} {[%emt 00:00:05]} 7. b3 {[%clk 01:29:07]}
{[%emt 00:04:15]} Nd7 {[%clk 01:33:09]} {[%emt 00:00:11]} 8. Bb2 {[%clk
01:29:08]} {[%emt 00:00:29]} Nf6 {[%clk 01:33:34]} {[%emt 00:00:05]} 9. Qh4
{[%clk 01:24:10]} {[%emt 00:05:27]} Bf5 {[%clk 01:33:51]} {[%emt 00:00:14]} 10.
Ne5 {[%clk 01:18:59]} {[%emt 00:05:41]} e6 {[%clk 01:31:11]} {[%emt 00:03:11]}
11. Bd3 {[%clk 01:17:08]} {[%emt 00:02:21]} Bxd3 {[%clk 01:15:45]} {[%emt
00:15:55]} 12. Nxd3 {[%clk 01:16:57]} {[%emt 00:00:41]} Qd5 {[%clk 01:03:37]}
{[%emt 00:12:39]} 13. f3 {[%clk 01:13:25]} {[%emt 00:04:01]} Be7 {[%clk
01:02:07]} {[%emt 00:02:01]} 14. O-O-O {[%clk 01:09:34]} {[%emt 00:04:21]} a5
{[%clk 00:57:13]} {[%emt 00:05:24]} 15. a4 {[%clk 01:07:07]} {[%emt 00:02:56]}
b5 {[%clk 00:41:01]} {[%emt 00:16:43]} 16. Rhe1 {[%clk 01:02:27]} {[%emt
00:05:10]} bxa4 {[%clk 00:39:51]} {[%emt 00:01:40]} 17. Qxa4 {[%clk 01:01:31]}
{[%emt 00:01:25]} Qb5 {[%clk 00:39:54]} {[%emt 00:00:27]} 18. Ne5 {[%clk
01:00:50]} {[%emt 00:01:11]} Ra6 {[%clk 00:36:42]} {[%emt 00:03:42]} 19. Nc4
{[%clk 00:50:34]} {[%emt 00:10:46]} O-O {[%clk 00:34:19]} {[%emt 00:02:54]} 20.
Bxf6 {[%clk 00:41:01]} {[%emt 00:10:02]} Bxf6 {[%clk 00:33:32]} {[%emt
00:01:17]} 21. c3 {[%clk 00:41:24]} {[%emt 00:00:08]} Rd8 {[%clk 00:30:05]}
{[%emt 00:03:58]} 22. Re4 {[%clk 00:38:30]} {[%emt 00:03:23]} Qg5 {[%clk
00:26:29]} {[%emt 00:04:06]} 23. Ne3 {[%clk 00:38:05]} {[%emt 00:00:54]} h5
{[%clk 00:14:49]} {[%emt 00:12:10]} 24. h3 {[%clk 00:26:16]} {[%emt 00:12:20]}
Rb6 {[%clk 00:12:55]} {[%emt 00:02:25]} 25. Kc2 {[%clk 00:25:25]} {[%emt
00:01:20]} Rb5 {[%clk 00:13:15]} {[%emt 00:00:10]} 26. g4 {[%clk 00:25:14]}
{[%emt 00:00:41]} Rc5 {[%clk 00:04:58]} {[%emt 00:08:47]} 27. f4 {[%clk
00:16:52]} {[%emt 00:08:52]} Qh4 {[%clk 00:05:11]} {[%emt 00:00:16]} 28. g5
{[%clk 00:15:04]} {[%emt 00:02:18]} Be7 {[%clk 00:03:25]} {[%emt 00:02:17]} 29.
g6 {[%clk 00:11:02]} {[%emt 00:04:32]} fxg6 {[%clk 00:00:36]} {[%emt 00:03:20]}
30. Rxe6 {[%clk 00:11:08]} {[%emt 00:00:23]} Bf6 {[%clk 00:00:58]} {[%emt
00:00:07]} 31. Qe4 {[%clk 00:08:51]} {[%emt 00:02:48]} Kf7 {[%clk 00:00:40]}
{[%emt 00:00:48]} 32. d4 {[%clk 00:07:42]} {[%emt 00:01:39]} Rb5 {[%clk
00:00:32]} {[%emt 00:00:37]} 33. Qxc6 {[%clk 00:07:32]} {[%emt 00:00:41]} Rdb8
{[%clk 00:00:37]} {[%emt 00:00:25]} 34. Nd5 {[%clk 00:07:03]} {[%emt 00:00:59]}
Rxb3 {[%clk 00:00:35]} {[%emt 00:00:33]} 35. Qd7+ {[%clk 00:06:37]} {[%emt
00:00:55]} Kf8 {[%clk 00:00:32]} {[%emt 00:00:32]} 36. Rxf6+ {[%clk 00:03:02]}
{[%emt 00:04:06]} Kg8 {[%clk 00:00:57]} {[%emt 00:00:04]} 37. Rxg6 {[%clk
00:02:15]} {[%emt 00:01:17]} Qf2+ {[%clk 00:00:50]} {[%emt 00:00:37]} 38. Kd3
{[%clk 00:02:42]} {[%emt 00:00:04]} Qf3+ {[%clk 00:00:49]} {[%emt 00:00:31]} 39.
Kc4 {[%clk 00:00:44]} {[%emt 00:02:28]} Rxc3+ {[%clk 00:01:09]} {[%emt
00:00:09]} 40. Nxc3 {[%clk 00:01:12]} {[%emt 00:00:03]} Rb4+ {[%clk 00:01:35]}
{[%emt 00:00:04]} 41. Kc5 {[%clk 00:01:37]} {[%emt 00:00:04]} Qxc3+ {[%clk
00:02:01]} {[%emt 00:00:04]} 42. Kd5 {[%clk 00:01:52]} {[%emt 00:00:16]} Qf3+
{[%clk 00:29:54]} {[%emt 00:02:37]} 43. Kc5 {[%clk 00:29:24]} {[%emt 00:02:58]}
Qc3+ {[%clk 00:30:10]} {[%emt 00:00:12]} 44. Kd5 {[%clk 00:29:48]} {[%emt
00:00:07]} 1/2-1/2